fUST/lending_fUST_20260104
["ID","MTS","AMOUNT","RATE_DAILY","PERIOD"]
[400381753,1767475840429,-628.0,0.00013703,2]
[400381755,1767475840439,-151.0,0.00014222,2]
[400381757,1767475840448,-151.0,0.00014736,2]
[400381759,1767475840457,-367.63328288,0.0001606,2]
[400381761,1767475840467,-3000.0,0.0001607,2]
[400381763,1767475840477,-3000.0,0.0001608,2]
[400381765,1767475840486,-3000.0,0.0001609,2]
[400381767,1767475840496,-3000.0,0.000161,2]
[400381770,1767475840506,-5374.424417,0.0001611,2]
[400381773,1767475840515,-5000.0,0.000162,2]
[400381776,1767475840524,-151.0,0.000162,2]
[400381779,1767475840534,-151.0,0.000162,2]
[400381781,1767475840543,-163.00357667,0.00016223,2]
[400381783,1767475840553,-151.0,0.000163,2]
[400381785,1767475840563,-25045.49125617,0.00016336,2]
[400381958,1767475844396,-6002.49480364,0.000129,2]
[400381959,1767475844453,-859.14854955,0.000129,2]
[400381960,1767475844463,-471.75039119,0.00016336,2]
[400381961,1767475844474,-1046.32681666,0.00016336,2]
[400382023,1767475845081,-1365.0,0.00014019,2]
[400382025,1767475845090,-2766.12882622,0.00016336,2]
[400382069,1767475846339,-6645.3536406,0.00016336,2]
[400382101,1767476983864,567.3279515,0.000301,120]
[400382133,1767477032283,-598.02255838,0.00012697,2]
[400382135,1767477032295,-319.74,0.00012697,2]
[400382138,1767477032308,-1318.77747175,0.00012697,2]
[400382142,1767477032337,-2301.82734987,0.00012697,2]
[400382144,1767477032347,-186.84051449,0.00012697,2]
[400382146,1767477032358,-600.0,0.00012697,2]
[400382148,1767477032368,-505.8322844,0.00012709,2]
[400382150,1767477032379,-300.0,0.00012793,2]
[400382152,1767477032388,-1200.0,0.00012793,2]
[400382154,1767477032398,-500.0,0.00012794,2]
[400382156,1767477032408,-500.0,0.00012794,2]
[400382158,1767477032419,-167.22141638,0.00012794,2]
[400382160,1767477032428,-500.0,0.00012794,2]
[400382162,1767477032438,-191.4565,0.00012794,2]
[400382164,1767477032447,-500.0,0.00012794,2]
[400382166,1767477032457,-351.46898287,0.00012794,2]
[400382167,1767477032466,-16719.89644984,0.00012794,2]
[400382168,1767477032475,-6003.93793405,0.000129,2]
[400382170,1767477032485,-283.34536394,0.00013054,2]
[400382172,1767477032496,-300.0,0.00013154,2]
[400382174,1767477032505,-300.0,0.00013154,2]
[400382176,1767477032515,-300.0,0.00013154,2]
[400382178,1767477032525,-300.0,0.00013154,2]
[400382193,1767477032663,-300.0,0.00013154,2]
[400382195,1767477032674,-300.0,0.00013154,2]
[400382197,1767477032684,-300.0,0.00013154,2]
[400382199,1767477032693,-300.0,0.00013154,2]
[400382201,1767477032703,-300.0,0.00013154,2]
[400382203,1767477032713,-300.0,0.00013154,2]
[400382205,1767477032723,-300.0,0.00013154,2]
[400382207,1767477032732,-300.0,0.00013154,2]
[400382209,1767477032742,-300.0,0.00013154,2]
[400382211,1767477032751,-300.0,0.00013154,2]
[400382213,1767477032760,-300.0,0.00013154,2]
[400382215,1767477032770,-500.0,0.00013273,2]
[400382217,1767477032779,-500.0,0.00013273,2]
[400382219,1767477032788,-415.34317373,0.00013273,2]
[400382220,1767477032797,-500.0,0.00013273,2]
[400382223,1767477032808,-600.0,0.00013416,2]
[400382224,1767477032818,-500.0,0.00013698,2]
[400382226,1767477032827,-500.0,0.00013698,2]
[400382228,1767477032836,-525.603904,0.00013698,2]
[400382230,1767477032846,-500.0,0.00013698,2]
[400382232,1767477032855,-340.97610487,0.00013698,2]
[400382234,1767477032865,-500.0,0.00013698,2]
[400382236,1767477032876,-507.76343984,0.00013698,2]
[400382238,1767477032885,-60377.9985272,0.00013699,2]
[400382240,1767477032895,-1000.0,0.00013699,2]
[400382242,1767477032904,-500.0,0.00013699,2]
[400382244,1767477032914,-500.0,0.00013699,2]
[400382246,1767477032923,-496.8836151,0.00013821,2]
[400382247,1767477032934,-1000.0,0.00013821,2]
[400382249,1767477032943,-420.0,0.00014032,2]
[400382252,1767477032953,-2145.0,0.00014046,2]
[400382253,1767477032963,-628.0,0.00014046,2]
[400382255,1767477032972,-1365.0,0.00014046,2]
[400382257,1767477032983,-416.0,0.00014046,2]
[400382259,1767477032992,-1680.0,0.00014072,2]
[400382261,1767477033003,-2669.02235666,0.00014186,7]
[400382263,1767477033012,-500.0,0.00014247,2]
[400382265,1767477033022,-1000.0,0.00014247,2]
[400382267,1767477033032,-186.680451,0.00014371,2]
[400382269,1767477033041,-186.680451,0.00014371,2]
[400382271,1767477033051,-186.680451,0.00014371,2]
[400382273,1767477033061,-186.680451,0.00014371,2]
[400382275,1767477033071,-1041.66666667,0.00014371,2]
[400382277,1767477033081,-156.949,0.00014373,2]
[400382279,1767477033092,-1810.23277533,0.00014378,2]
[400382281,1767477033104,-500.0,0.00014692,2]
[400382283,1767477033114,-596.8820956,0.00014709,2]
[400382285,1767477033123,-720.0,0.00014758,2]
[400382287,1767477033133,-1049.94063362,0.00014795,2]
[400382289,1767477033144,-200.75766743,0.00014989,2]
[400382291,1767477033154,-456.499247,0.00015068,2]
[400382293,1767477033164,-6003.93793399,0.00015127,2]
[400382295,1767477033176,-468.29023532,0.0001534,2]
[400382296,1767477033186,-587.0,0.00015392,2]
[400382298,1767477033196,-274.2217453,0.00015448,2]
[400382300,1767477033205,-288.4233645,0.00015448,2]
[400382302,1767477033215,-3241.6079657,0.00015448,2]
[400382304,1767477033225,-2351.0,0.00015479,2]
[400382306,1767477033234,-186.680451,0.00015678,2]
[400382308,1767477033244,-186.680451,0.00015678,2]
[400382310,1767477033255,-186.680451,0.00015678,2]
[400382312,1767477033265,-186.680451,0.00015678,2]
[400382314,1767477033275,-3470.46555067,0.00015678,2]
[400382316,1767477033284,-186.680451,0.0001599,2]
[400382318,1767477033294,-186.680451,0.0001599,2]
[400382320,1767477033304,-186.680451,0.0001599,2]
[400382321,1767477033314,-186.680451,0.0001599,2]
[400382323,1767477033323,-1185.91665073,0.0001599,2]
[400382326,1767477033335,-59578.99612419,0.0001599,2]
[400382489,1767477038421,-500.0,0.00013698,2]
[400382490,1767477038433,-500.0,0.00013698,2]
[400382491,1767477038448,-164.4899177,0.00013698,2]
[400382492,1767477038469,-500.0,0.00013698,2]
[400382493,1767477038486,-500.0,0.00013698,2]
[400382494,1767477038497,-500.0,0.00013698,2]
[400382495,1767477038508,-500.0,0.00013698,2]
[400382496,1767477038518,-217.5307561,0.00013698,2]
[400382497,1767477038529,-500.0,0.00013698,2]
[400382498,1767477038541,-500.0,0.00013698,2]
[400382499,1767477038552,-500.0,0.00013698,2]
[400382500,1767477038561,-500.0,0.00013698,2]
[400382501,1767477038572,-500.0,0.00013698,2]
[400382502,1767477038582,-84.52043797,0.00013698,2]
[400382599,1767477044809,-415.47956203,0.00013698,2]
[400382600,1767477044819,-215.08203634,0.00013698,2]
[400382601,1767477044828,-486.70719314,0.00013698,2]
[400382790,1767477046571,-13.29280686,0.00013698,2]
[400382792,1767477046580,-9058.60879526,0.0001599,2]
[400382941,1767477317752,999.0,0.00011757,2]
[400382942,1767477430101,228.84384501,0.00024778,120]
[400382944,1767477636186,10000.0,0.00030137,120]
[400382946,1767477820783,9001.01,0.00011693,2]
[400382947,1767477820809,10000.01,0.00011693,2]
[400382948,1767477820831,10000.01,0.00011693,2]
[400382949,1767477820856,2844.961124,0.00011693,2]
[400382993,1767478232455,-597.0,0.000125,2]
[400382995,1767478232466,-300.0,0.00012591,2]
[400382997,1767478232476,-300.0,0.00012591,2]
[400382999,1767478232485,-300.0,0.00012591,2]
[400383001,1767478232495,-300.0,0.00012591,2]
[400383003,1767478232505,-1200.0,0.00012591,2]
[400383005,1767478232515,-22022.14427282,0.00012592,2]
[400383007,1767478232525,-487.61129261,0.00012626,2]
[400383008,1767478232536,-1200.0,0.00012688,2]
[400383009,1767478232545,-300.0,0.00012688,2]
[400383010,1767478232555,-468.94006733,0.0001269,2]
[400383011,1767478232567,-205.71877587,0.0001269,2]
[400383012,1767478232577,-502.27152927,0.0001269,2]
[400383013,1767478232587,-500.0,0.0001269,2]
[400383014,1767478232596,-500.0,0.0001269,2]
[400383015,1767478232607,-500.0,0.0001269,2]
[400383016,1767478232616,-500.0,0.0001269,2]
[400383017,1767478232626,-500.0,0.0001269,2]
[400383018,1767478232636,-500.0,0.0001269,2]
[400383019,1767478232645,-500.0,0.0001269,2]
[400383020,1767478232655,-500.0,0.0001269,2]
[400383021,1767478232664,-500.0,0.0001269,2]
[400383022,1767478232674,-500.0,0.0001269,2]
[400383023,1767478232683,-500.0,0.0001269,2]
[400383024,1767478232693,-500.0,0.0001269,2]
[400383025,1767478232702,-500.0,0.0001269,2]
[400383026,1767478232712,-500.0,0.0001269,2]
[400383027,1767478232836,-500.0,0.0001269,2]
[400383028,1767478232849,-500.0,0.0001269,2]
[400383029,1767478232859,-500.0,0.0001269,2]
[400383030,1767478232870,-500.0,0.0001269,2]
[400383031,1767478232879,-509.92160556,0.0001269,2]
[400383032,1767478232890,-500.0,0.0001269,2]
[400383033,1767478232900,-500.0,0.0001269,2]
[400383034,1767478232909,-500.0,0.0001269,2]
[400383035,1767478232919,-500.0,0.0001269,2]
[400383036,1767478232929,-500.0,0.0001269,2]
[400383037,1767478232939,-50000.0,0.0001269,2]
[400383038,1767478232948,-4502.95345051,0.000129,2]
[400383039,1767478232958,-300.0,0.00012947,2]
[400383040,1767478232967,-300.0,0.00012947,2]
[400383041,1767478232977,-300.0,0.00012947,2]
[400383042,1767478232986,-300.0,0.00012947,2]
[400383043,1767478232996,-300.0,0.00012947,2]
[400383044,1767478233005,-300.0,0.00012947,2]
[400383045,1767478233014,-103.86222651,0.00012947,2]
[400383046,1767478233027,-196.13777349,0.00012947,2]
[400383047,1767478233036,-300.0,0.00012947,2]
[400383048,1767478233046,-300.0,0.00012947,2]
[400383049,1767478233055,-300.0,0.00012947,2]
[400383050,1767478233065,-300.0,0.00012947,2]
[400383051,1767478233074,-300.0,0.00012947,2]
[400383052,1767478233084,-300.0,0.00012947,2]
[400383053,1767478233094,-300.0,0.00012947,2]
[400383054,1767478233103,-300.0,0.00012947,2]
[400383055,1767478233113,-301.9297961,0.00012947,2]
[400383066,1767478238621,-446.94503474,0.00012375,2]
[400383067,1767478238632,-1586.21195227,0.00012375,2]
[400383068,1767478238647,-2352.00076887,0.00012375,2]
[400383069,1767478238659,-614.84224412,0.00012375,2]
[400383070,1767478238669,-298.0702039,0.00012947,2]
[400383071,1767478238679,-1394.606569,0.00013699,2]
[400383072,1767478238688,-420.0,0.00013814,2]
[400383073,1767478238698,-2056.02684681,0.0001384,2]
[400383087,1767478245014,-2320.79753792,0.0001384,2]
[400383091,1767478246831,-1441.88860185,0.0001384,2]
[400383093,1767478246843,-2197.30038579,0.0001384,2]
[400383095,1767478246852,-1680.0,0.0001385,2]
[400383097,1767478246861,-416.0,0.00013979,2]
[400383099,1767478246870,-1365.0,0.00014046,2]
[400383101,1767478246879,-1396.82136884,0.00014046,2]
[400383102,1767478246910,-680.90757339,0.00014046,2]
[400383109,1767478661639,5000.0,0.00012069,2]
[400383110,1767478684803,1618.87,0.00012069,2]
[400383128,1767479312596,291.44258731,0.00024566,120]
[400383231,1767479436796,-593.0,0.00012266,2]
[400383233,1767479436805,-320.68375377,0.00012281,2]
[400383235,1767479436817,-165.64991015,0.00012281,2]
[400383237,1767479436827,-1200.0,0.00012323,2]
[400383239,1767479436836,-300.0,0.00012323,2]
[400383241,1767479436846,-227.0,0.00012323,2]
[400383243,1767479436856,-300.0,0.00012323,2]
[400383245,1767479436867,-1019.4450694,0.00012323,2]
[400383247,1767479436880,-180.5549306,0.00012323,2]
[400383249,1767479436892,-300.0,0.00012323,2]
[400383251,1767479436902,-300.0,0.00012323,2]
[400383253,1767479436912,-448.12064403,0.00012324,2]
[400383255,1767479436924,-98.31098457,0.00012324,2]
[400383257,1767479436933,-538.89633984,0.00012324,2]
[400383259,1767479436945,-24301.36712251,0.00012324,2]
[400383286,1767479437716,-1583.79013717,0.00012324,2]
[400383287,1767479437729,-23575.94640048,0.00012324,2]
[400383288,1767479437739,-409.83,0.00012329,2]
[400383289,1767479437749,-723.26,0.00012329,2]
[400383290,1767479437759,-602.71,0.00012329,2]
[400383291,1767479437769,-502.26,0.00012329,2]
[400383292,1767479437778,-418.55,0.00012329,2]
[400383293,1767479437788,-348.79,0.00012329,2]
[400383294,1767479437798,-290.66,0.00012329,2]
[400383295,1767479437807,-242.22,0.00012329,2]
[400383297,1767479437816,-204.01,0.00012588,2]
[400383298,1767479437827,-271.28300704,0.00012589,2]
[400383299,1767479437839,-228.71699296,0.00012589,2]
[400383300,1767479437849,-500.0,0.00012589,2]
[400383301,1767479437859,-500.0,0.00012589,2]
[400383303,1767479437868,-395.46441428,0.00012589,2]
[400383305,1767479437877,-59.67786487,0.00012589,2]
[400383307,1767479437889,-440.32213513,0.00012589,2]
[400383309,1767479437899,-500.0,0.00012589,2]
[400383311,1767479437908,-316.63056527,0.00012589,2]
[400383313,1767479437918,-500.0,0.0001259,2]
[400383315,1767479437927,-442.7972996,0.00012741,2]
[400383317,1767479437939,-75.52184481,0.00012741,2]
[400383319,1767479437949,-300.0,0.00012841,2]
[400383321,1767479437958,-300.0,0.00012841,2]
[400383323,1767479437968,-300.0,0.00012841,2]
[400383325,1767479437978,-300.0,0.00012841,2]
[400383327,1767479437988,-300.0,0.00012841,2]
[400383329,1767479437997,-300.0,0.00012841,2]
[400383331,1767479438008,-300.0,0.00012841,2]
[400383333,1767479438017,-300.0,0.00012841,2]
[400383335,1767479438028,-300.0,0.00012841,2]
[400383337,1767479438038,-300.0,0.00012841,2]
[400383339,1767479438048,-300.0,0.00012841,2]
[400383341,1767479438058,-300.0,0.00012841,2]
[400383343,1767479438067,-300.0,0.00012841,2]
[400383345,1767479438077,-300.0,0.00012841,2]
[400383347,1767479438088,-300.0,0.00012841,2]
[400383349,1767479438097,-600.0,0.00012841,2]
[400383351,1767479438107,-500.0,0.00012864,2]
[400383353,1767479438117,-161.3901574,0.00012906,2]
[400383355,1767479438127,-216.3175234,0.00012906,2]
[400383357,1767479438137,-500.0,0.00013138,2]
[400383359,1767479438147,-381.16221649,0.00013273,2]
[400383361,1767479438156,-340.60756482,0.00013273,2]
[400383363,1767479438166,-500.0,0.00013273,2]
[400383365,1767479438175,-500.0,0.00013273,2]
[400383367,1767479438184,-500.0,0.00013273,2]
[400383369,1767479438193,-500.0,0.00013273,2]
[400383371,1767479438202,-500.0,0.00013273,2]
[400383373,1767479438211,-544.63270575,0.00013273,2]
[400383375,1767479438222,-71.84285663,0.00013273,2]
[400383378,1767479438246,-428.15714337,0.00013273,2]
[400383380,1767479438255,-10.26220474,0.00013273,2]
[400383382,1767479438267,-489.73779526,0.00013273,2]
[400383384,1767479438276,-500.0,0.00013273,2]
[400383385,1767479438286,-500.0,0.00013273,2]
[400383387,1767479438296,-500.0,0.00013273,2]
[400383389,1767479438305,-257.06995954,0.00013273,2]
[400383476,1767479439912,-242.93004046,0.00013273,2]
[400383477,1767479439921,-500.0,0.00013273,2]
[400383479,1767479439931,-500.0,0.00013273,2]
[400383481,1767479439941,-500.0,0.00013273,2]
[400383483,1767479439952,-500.0,0.00013273,2]
[400383485,1767479439961,-500.0,0.00013273,2]
[400383487,1767479439970,-500.0,0.00013273,2]
[400383489,1767479439980,-500.0,0.00013273,2]
[400383491,1767479439991,-500.0,0.00013273,2]
[400383493,1767479440000,-500.0,0.00013273,2]
[400383495,1767479440009,-478.39441376,0.00013273,2]
[400383551,1767479445205,-500.0,0.00012589,2]
[400383552,1767479445212,-500.0,0.00012589,2]
[400383553,1767479445220,-486.68356215,0.00012589,2]
[400383554,1767479445228,-500.0,0.00012589,2]
[400383556,1767479445237,-500.0,0.00012589,2]
[400383558,1767479445244,-500.0,0.00012589,2]
[400383560,1767479445253,-329.7532651,0.00012589,2]
[400383561,1767479445260,-500.0,0.00012589,2]
[400383562,1767479445268,-470.41158455,0.00012589,2]
[400383566,1767479445834,-29.58841545,0.00012589,2]
[400383567,1767479445845,-500.0,0.00012589,2]
[400383568,1767479445855,-500.0,0.00012589,2]
[400383569,1767479445865,-500.0,0.00012589,2]
[400383570,1767479445875,-500.0,0.00012589,2]
[400383571,1767479445885,-21.60558624,0.00013273,2]
[400383572,1767479445895,-500.0,0.00013273,2]
[400383573,1767479445905,-500.0,0.00013273,2]
[400383574,1767479445914,-500.0,0.00013273,2]
[400383575,1767479445924,-500.0,0.00013273,2]
[400383576,1767479445934,-500.0,0.00013273,2]
[400383577,1767479445944,-500.0,0.00013273,2]
[400383578,1767479445954,-269.83060658,0.00013273,2]
[400383579,1767479445963,-500.0,0.00013273,2]
[400383580,1767479445973,-500.0,0.00013273,2]
[400383581,1767479445983,-500.0,0.00013273,2]
[400383582,1767479445993,-500.0,0.00013273,2]
[400383583,1767479446002,-315.88685405,0.00013273,2]
[400383584,1767479446012,-501.19052166,0.00013273,2]
[400383585,1767479446021,-500.0,0.00013273,2]
[400383586,1767479446030,-599.02274798,0.00013273,2]
[400383587,1767479446040,-500.0,0.00013273,2]
[400383588,1767479446050,-500.0,0.00013273,2]
[400383589,1767479446059,-500.0,0.00013273,2]
[400383590,1767479446069,-499.96763801,0.00013273,2]
[400383591,1767479446078,-303.512707,0.00013273,2]
[400383592,1767479446088,-1680.0,0.00013524,2]
[400383593,1767479446097,-420.0,0.00013524,2]
[400383594,1767479446107,-420.0,0.00013524,2]
[400383595,1767479446117,-151.0,0.00013556,2]
[400383596,1767479446127,-279.886119,0.00013556,2]
[400383597,1767479446137,-1680.0,0.00013556,2]
[400383598,1767479446259,-518.31914439,0.00013632,2]
[400383599,1767479446271,-300.0,0.00013673,2]
[400383600,1767479446281,-500.0,0.00013698,2]
[400383601,1767479446291,-500.0,0.00013698,2]
[400383602,1767479446300,-503.20098078,0.00013698,2]
[400383603,1767479446310,-500.0,0.00013698,2]
[400383604,1767479446319,-500.0,0.00013698,2]
[400383605,1767479446329,-500.0,0.00013698,2]
[400383606,1767479446339,-500.0,0.00013698,2]
[400383607,1767479446348,-500.0,0.00013698,2]
[400383608,1767479446357,-500.0,0.00013698,2]
[400383609,1767479446367,-500.0,0.00013698,2]
[400383610,1767479446376,-500.0,0.00013698,2]
[400383611,1767479446387,-500.0,0.00013698,2]
[400383612,1767479446396,-500.0,0.00013698,2]
[400383613,1767479446406,-500.0,0.00013698,2]
[400383614,1767479446416,-500.0,0.00013698,2]
[400383615,1767479446426,-500.0,0.00013698,2]
[400383616,1767479446438,-500.0,0.00013698,2]
[400383617,1767479446447,-500.0,0.00013698,2]
[400383618,1767479446457,-429.40593815,0.00013698,2]
[400383619,1767479446467,-500.0,0.00013698,2]
[400383620,1767479446478,-500.0,0.00013698,2]
[400383621,1767479446487,-500.0,0.00013698,2]
[400383622,1767479446496,-500.0,0.00013698,2]
[400383623,1767479446509,-151.0,0.00013698,2]
[400383624,1767479446518,-151.0,0.00013698,2]
[400383625,1767479446528,-151.0,0.00013698,2]
[400383626,1767479446538,-283.34900001,0.00013698,2]
[400383627,1767479446548,-2455.53195138,0.00013706,2]
[400383628,1767479446557,-612.9443202,0.00014005,2]
[400383629,1767479446567,-720.0,0.00014126,2]
[400383630,1767479446577,-2145.0,0.00014214,2]
[400383631,1767479446586,-1365.0,0.00014214,2]
[400383632,1767479446595,-628.0,0.00014214,2]
[400383633,1767479446605,-500.0,0.0001424,2]
[400383634,1767479446615,-573.87372342,0.00014281,2]
[400383635,1767479446625,-1787.22066707,0.00014378,2]
[400383636,1767479446634,-1041.66666667,0.00014379,2]
[400383637,1767479446644,-216.3175234,0.00014397,2]
[400383638,1767479446654,-156.949,0.00014485,2]
[400383639,1767479446664,-518.31914439,0.00014522,2]
[400383640,1767479446673,-500.0,0.00014692,2]
[400383641,1767479446683,-151.0,0.00014736,2]
[400383642,1767479446693,-151.0,0.00014736,2]
[400383643,1767479446702,-274.460776,0.00014736,2]
[400383644,1767479446712,-151.0,0.00014736,2]
[400383645,1767479446722,-2351.0,0.00014841,2]
[400383646,1767479446735,-511.0,0.00014841,2]
[400383647,1767479446745,-587.0,0.00014841,2]
[400383648,1767479446755,-2351.0,0.00014911,2]
[400383649,1767479446765,-290.49614853,0.00014966,2]
[400383650,1767479446774,-365.199397,0.00015068,2]
[400383651,1767479446784,-518.31914439,0.00015413,2]
[400383652,1767479446794,-864.0,0.00015538,2]
[400383653,1767479446803,-216.3175234,0.00015888,2]
[400383654,1767479446813,-160.0,0.00015919,2]
[400383655,1767479446823,-782.60094488,0.0001592,2]
[400383656,1767479446832,-201.85,0.0001598,3]
[400383657,1767479446842,-605.57,0.0001598,3]
[400383658,1767479446851,-500.0,0.00015989,2]
[400383659,1767479446861,-500.0,0.00015989,2]
[400383660,1767479446870,-16456.92938585,0.0001599,2]
[400383661,1767479446883,-3405.66973687,0.0001599,2]
[400383662,1767479446894,-23742.99999981,0.0001599,2]
[400383664,1767479479670,153.53,0.00010985,2]
[400383665,1767479479985,175.46,0.00011392,2]
[400383666,1767479480387,197.4,0.00011799,2]
[400383669,1767479677822,9.788876,8.783e-05,2]
[400383670,1767479677849,142.861124,8.783e-05,2]
[400383671,1767479678223,203.53,9.164e-05,2]
[400383672,1767479678668,254.41,9.546e-05,2]
[400383673,1767479679055,305.29,9.928e-05,2]
[400383674,1767479679472,356.17,0.0001031,2]
[400383675,1767479679858,407.06,0.00010692,2]
[400383676,1767479680252,457.94,0.00011074,2]
[400383677,1767479680647,508.82,0.00011455,2]
[400383679,1767479720494,5000.0,0.00012069,2]
[400383680,1767479752527,151.99564097,0.00010591,2]
[400383697,1767480017590,999.0,0.0001125,2]
[400383698,1767480098404,500.0,0.00011224,2]
[400383728,1767480523720,-590.86718549,0.00012125,2]
[400383729,1767480528359,-192.45000003,0.00012125,2]
[400383730,1767480530285,-221.00000003,0.00012125,2]
[400383746,1767480621752,712.93323503,0.00011,10]
[400383747,1767480621776,5537.11835878,0.00011,10]
[400383775,1767480637165,-1200.0,0.00012124,2]
[400383776,1767480637175,-591.0,0.00012125,2]
[400383777,1767480637185,-134.86487644,0.00012125,2]
[400383778,1767480637197,-8860.82793801,0.00012125,2]
[400383779,1767480637207,-473.23462089,0.00012171,2]
[400383780,1767480637217,-300.0,0.00012216,2]
[400383782,1767480637227,-300.0,0.00012217,2]
[400383783,1767480637237,-300.0,0.00012217,2]
[400383785,1767480637247,-151.0,0.00012218,2]
[400383786,1767480637256,-151.0,0.00012218,2]
[400383788,1767480637266,-151.0,0.00012218,2]
[400383790,1767480637275,-299.1144226,0.00012218,2]
[400383792,1767480637285,-1200.0,0.0001222,2]
[400383794,1767480637295,-500.0,0.00012224,2]
[400383796,1767480637304,-500.0,0.00012224,2]
[400383798,1767480637314,-500.0,0.00012224,2]
[400383800,1767480637324,-213.8230185,0.00012224,2]
[400383803,1767480637344,-286.1769815,0.00012224,2]
[400383805,1767480637354,-500.0,0.00012224,2]
[400383807,1767480637364,-213.8230185,0.00012224,2]
[400383812,1767480637909,-286.1769815,0.00012224,2]
[400383813,1767480637919,-205.4929086,0.00012224,2]
[400383815,1767480638026,-294.5070914,0.00012224,2]
[400383816,1767480638036,-500.0,0.00012224,2]
[400383817,1767480638046,-500.0,0.00012224,2]
[400383818,1767480638056,-500.0,0.00012224,2]
[400383819,1767480638066,-500.0,0.00012224,2]
[400383820,1767480638082,-500.0,0.00012224,2]
[400383821,1767480638094,-500.0,0.00012224,2]
[400383822,1767480638104,-500.0,0.00012224,2]
[400383823,1767480638115,-500.0,0.00012224,2]
[400383824,1767480638125,-500.0,0.00012224,2]
[400383825,1767480638136,-500.0,0.00012224,2]
[400383826,1767480638146,-500.0,0.00012224,2]
[400383827,1767480638155,-500.0,0.00012224,2]
[400383828,1767480638167,-500.0,0.00012224,2]
[400383829,1767480638177,-371.39332268,0.00012224,2]
[400383830,1767480638187,-500.0,0.00012224,2]
[400383831,1767480638197,-500.0,0.00012224,2]
[400383832,1767480638207,-500.0,0.00012224,2]
[400383833,1767480638217,-500.0,0.00012224,2]
[400383834,1767480638227,-500.0,0.00012224,2]
[400383835,1767480638237,-250.0,0.00012224,2]
[400383836,1767480638246,-887.00494234,0.00012224,2]
[400383837,1767480638256,-887.00494234,0.00012224,2]
[400383838,1767480638266,-635.24393766,0.00012224,2]
[400383839,1767480638276,-500.0,0.00012224,2]
[400383840,1767480638286,-500.0,0.00012291,2]
[400383841,1767480638296,-500.0,0.00012291,2]
[400383842,1767480638306,-403.7,0.00012329,2]
[400383843,1767480638315,-500.0,0.00012428,2]
[400383844,1767480638325,-500.0,0.00012428,2]
[400383846,1767480638335,-500.0,0.00012565,2]
[400383847,1767480638344,-500.0,0.00012565,2]
[400383849,1767480638355,-500.0,0.00012565,2]
[400383850,1767480638365,-500.0,0.00012565,2]
[400383851,1767480638375,-500.0,0.00012565,2]
[400383852,1767480638384,-500.0,0.00012565,2]
[400383853,1767480638394,-500.0,0.00012565,2]
[400383854,1767480638404,-500.0,0.00012565,2]
[400383855,1767480638414,-500.0,0.00012565,2]
[400383856,1767480638424,-500.0,0.00012565,2]
[400383857,1767480638433,-500.0,0.00012565,2]
[400383858,1767480638444,-500.0,0.00012565,2]
[400383859,1767480638453,-259.581475,0.00012565,2]
[400383860,1767480638463,-500.0,0.00012702,2]
[400383861,1767480638473,-500.0,0.00012702,2]
[400383862,1767480638483,-500.0,0.00012702,2]
[400383863,1767480638493,-500.0,0.00012702,2]
[400383864,1767480638503,-500.0,0.00012702,2]
[400383865,1767480638512,-500.0,0.00012702,2]
[400383866,1767480638522,-500.0,0.00012702,2]